[Event "2nd China Binhai Open 2020"]
[Site "Tianjin"]
[Date "2020.01.13"]
[Round "1.20"]
[White "Yang, Jingsen"]
[Black "Zhai, Mo"]
[Result "0-1"]
[ECO "C65"]
[WhiteElo "1606"]
[BlackElo "2366"]
[Annotator "RC"]
[PlyCount "133"]
[EventDate "2020.01.13"]
[EventType "swiss"]
[EventRounds "9"]
[EventCountry "CHN"]
[TimeControl "5400+30"]

1. e4 e5 2. Nf3 Nc6 3. Bb5 Nf6 4. O-O Bc5 5. d3 d6 6. h3 h6 7. c3 O-O 8. Nbd2 Bd7 9. a4 a5 10. Nc4 Re8 11. Be3 Bxe3 12. Nxe3 Ne7 13. Bc4 Bc6 14. Qb3 Rf8 15. Rfe1 Ng6 16. Nd5 Rb8 17. d4 Bxd5 18. Bxd5 Qe7 19. dxe5 Nxe5 20. Nxe5 Qxe5 21. f3 Nh5 22. Qd1 Qg3 23. Qd2 Nf4 24. Kh1 Rfe8 25. Bc4 Re5 26. Bf1 Rg5 27. Re3 Re8 28. Rc1 Re6 29. Rc2 Reg6 30. Qf2 Nxh3 31. Qxg3 Rxg3 32. e5 Nf4 33. exd6 Rxd6 34. Kh2 Rg5 35. Re4 Ne6 36. Bc4 Kf8 37. Rce2 Ke7 38. f4 Rh5+ 39. Kg3 Kd7 40. Kg4 g6 41. Kf3 Rh1 42. Bxe6+ Rxe6 43. Rd4+ Ke7 44. Red2 Kf6 45. g3 h5 46. Rd7 Re7 47. R7d5 b6 48. b4 axb4 49. cxb4 Rf1+ 50. Kg2 Rb1 51. R5d4 Re3 52. a5 bxa5 53. bxa5 Rbb3 54. Ra4 Rxg3+ 55. Kf1 Rgf3+ 56. Ke2 Rfe3+ 57. Kf2 Rh3 58. Kg2 Rbg3+ 59. Kf2 h4 60. Ke1 Rh1+ 61. Ke2 Rh2+ 62. Kd1 Rxd2+ 63. Kxd2 h3 64. Ra1 h2 65. Rh1 Ra3 66. Rf1 Rxa5 67. Ke3 0-1

[Event "2nd China Binhai Open 2020"]
[Site "Tianjin"]
[Date "2020.01.13"]
[Round "1.21"]
[White "Kaiyrbekov, Rustam"]
[Black "Geng, Tiankai"]
[Result "1-0"]
[ECO "A00"]
[WhiteElo "2329"]
[BlackElo "1543"]
[PlyCount "95"]
[EventDate "2020.01.13"]
[EventType "swiss"]
[EventRounds "9"]
[EventCountry "CHN"]
[TimeControl "5400+30"]

1. d4 Nf6 2. c4 g6 3. Nc3 d5 4. Bf4 Bg7 5. e3 O-O 6. Nf3 c6 7. Bd3 Qb6 8. Qc2 Be6 9. c5 Qd8 10. O-O Nh5 11. h3 Nxf4 12. exf4 Qc8 13. Rfe1 a5 14. Na4 Nd7 15. Qd2 Qc7 16. Ng5 Bxd4 17. Rxe6 h6 18. Nxf7 Rxf7 19. Rxg6+ Bg7 20. f5 Ne5 21. Re6 Nxd3 22. Qxd3 Raf8 23. g4 Qf4 24. Nc3 Bd4 25. Rf1 Bf6 26. b3 h5 27. Ne2 Qg5 28. f4 Qh4 29. g5 Bg7 30. f6 exf6 31. g6 Rd7 32. Nd4 f5 33. Nxf5 Qd8 34. Nxg7 Rxg7 35. f5 Rf6 36. Rfe1 Rxe6 37. Rxe6 Qg5+ 38. Kh2 Qf4+ 39. Kg2 Qg5+ 40. Qg3 Qd2+ 41. Qf2 Qg5+ 42. Kh2 Kf8 43. Qe3 Qxe3 44. Rxe3 h4 45. Re6 Rd7 46. f6 Rd8 47. Kg2 d4 48. Rd6 1-0

[Event "2nd China Binhai Open 2020"]
[Site "Tianjin"]
[Date "2020.01.13"]
[Round "1.23"]
[White "Li, Yunshan"]
[Black "Guan, Runpei"]
[Result "1-0"]
[ECO "A00"]
[WhiteElo "2287"]
[BlackElo "1561"]
[PlyCount "71"]
[EventDate "2020.01.13"]
[EventType "swiss"]
[EventRounds "9"]
[EventCountry "CHN"]
[TimeControl "5400+30"]

1. d4 d5 2. c4 c6 3. cxd5 cxd5 4. Bf4 Nc6 5. e3 Nf6 6. Nc3 Qb6 7. a3 Bf5 8. Na4 Qd8 9. b4 e6 10. Nc5 Bxc5 11. dxc5 e5 12. Bg5 d4 13. Bb5 Qd5 14. Nf3 Bg4 15. Bxf6 gxf6 16. Be2 Bxf3 17. gxf3 a6 18. e4 Qe6 19. Bd3 Rg8 20. h4 Ke7 21. Ke2 Rg2 22. Qa4 Qc8 23. Rag1 Qg8 24. Kf1 Rg6 25. Qb3 Qf8 26. a4 Qh6 27. Ke2 Qf8 28. b5 axb5 29. axb5 Na5 30. Qb4 Rxg1 31. Rxg1 Qd8 32. Rg7 Qf8 33. Rg1 Qd8 34. Rc1 Ke8 35. c6 Rc8 36. Rg1 1-0

[Event "2nd China Binhai Open 2020"]
[Site "Tianjin"]
[Date "2020.01.13"]
[Round "1.24"]
[White "Zhou, Yichen"]
[Black "Xi, Qi"]
[Result "1/2-1/2"]
[ECO "A00"]
[WhiteElo "1536"]
[BlackElo "2261"]
[PlyCount "106"]
[EventDate "2020.01.13"]
[EventType "swiss"]
[EventRounds "9"]
[EventCountry "CHN"]
[TimeControl "5400+30"]

1. Nf3 d5 2. g3 Nf6 3. Bg2 c6 4. O-O Bf5 5. d3 Nbd7 6. b3 e5 7. Bb2 Qc7 8. Nbd2 Bd6 9. Re1 O-O 10. e4 Bg6 11. Nh4 Bh5 12. Bf3 Bxf3 13. Qxf3 Rfe8 14. a3 a5 15. Rac1 Nc5 16. Qg2 Rad8 17. Nf5 Bf8 18. exd5 cxd5 19. a4 Ncd7 20. Ne3 d4 21. Nec4 Bb4 22. Re2 Nf8 23. Nf3 Ng6 24. Rf1 h6 25. h4 Re6 26. Qh3 Nd5 27. Qg4 Nf6 28. Qh3 Nd5 29. Qg4 Nf6 30. Qh3 Rde8 31. h5 Nf8 32. Qh4 N8d7 33. Qh1 Qc6 34. Ba1 Ng4 35. Bb2 R8e7 36. Nh4 Ngf6 37. Nf5 Re8 38. f3 b5 39. axb5 Qxb5 40. g4 Nd5 41. Bc1 f6 42. f4 Nc3 43. Ref2 Qc5 44. Qb7 Qd5 45. Qxd5 Nxd5 46. fxe5 fxe5 47. g5 hxg5 48. Bxg5 Rf8 49. Rg2 Kh7 50. Bd2 Rg8 51. Bxb4 axb4 52. Re2 Rge8 53. Ncd6 Rg8 1/2-1/2

[Event "2nd China Binhai Open 2020"]
[Site "Tianjin"]
[Date "2020.01.13"]
[Round "1.25"]
[White "Yan, Tianqi"]
[Black "Song, Ethan"]
[Result "1-0"]
[ECO "A00"]
[WhiteElo "2240"]
[BlackElo "1494"]
[PlyCount "141"]
[EventDate "2020.01.13"]
[EventType "swiss"]
[EventRounds "9"]
[EventCountry "CHN"]
[TimeControl "5400+30"]

1. e4 e5 2. Nf3 Nc6 3. Bb5 Nf6 4. d3 d6 5. O-O a6 6. Bxc6+ bxc6 7. d4 Bg4 8. dxe5 Nxe4 9. exd6 Nxd6 10. h3 Be6 11. Ne5 c5 12. Qf3 Be7 13. Nc6 Qd7 14. Nxe7 Kxe7 15. Qc3 c4 16. Qxg7 Rag8 17. Bg5+ Ke8 18. Qe5 h6 19. Bf6 Rh7 20. Nc3 Kf8 21. Rfe1 Rg6 22. g3 h5 23. h4 Qc6 24. Rad1 Qf3 25. Rxd6 Qxf6 26. Qxf6 Rxf6 27. Rxa6 Kg7 28. Rc6 Rh8 29. Rxc7 Bf5 30. Nd5 Ra6 31. Ne3 Bg6 32. a3 Rb8 33. Nxc4 Bxc2 34. b4 Rd8 35. b5 Ra4 36. b6 Bb3 37. Ne5 Bd5 38. b7 Rb8 39. Rb1 Ra7 40. Rd7 Raxb7 41. Rbxb7 Bxb7 42. Rxf7+ Kg8 43. Kh2 Bd5 44. Rf5 Be4 45. Rxh5 Kg7 46. Rg5+ Kh7 47. Nd7 Rd8 48. Nf6+ Kh6 49. Nxe4 Rd4 50. Nc5 Rd1 51. a4 Ra1 52. Rd5 Ra2 53. Kg2 Kg6 54. g4 Rc2 55. h5+ Kh6 56. Kg3 Rc3+ 57. Nd3 Ra3 58. Rd6+ Kg7 59. h6+ Kh7 60. g5 Rxa4 61. Rd7+ Kg8 62. g6 Ra8 63. Nc5 Kh8 64. Rh7+ Kg8 65. Rg7+ Kf8 66. Nd7+ Ke8 67. h7 Ra3+ 68. f3 Rxf3+ 69. Kxf3 Kd8 70. Nf6 Kc8 71. h8=Q# 1-0

[Event "2nd China Binhai Open 2020"]
[Site "Tianjin"]
[Date "2020.01.13"]
[Round "1.26"]
[White "Shao, Ziyang B"]
[Black "Zhu, Hengyi"]
[Result "0-1"]
[ECO "A00"]
[WhiteElo "1464"]
[BlackElo "2238"]
[PlyCount "90"]
[EventDate "2020.01.13"]
[EventType "swiss"]
[EventRounds "9"]
[EventCountry "CHN"]
[TimeControl "5400+30"]

1. e4 c5 2. Nf3 d6 3. d4 cxd4 4. Nxd4 Nf6 5. Nc3 a6 6. Bg5 Nbd7 7. f4 Qb6 8. Qd2 e5 9. Nb3 h6 10. Bxf6 Nxf6 11. f5 Qc7 12. O-O-O b5 13. a3 Bb7 14. Nd5 Bxd5 15. exd5 Rc8 16. Kb1 Be7 17. g3 Qb6 18. Bg2 Ng4 19. Rde1 Bg5 20. Qe2 Ne3 21. Be4 Nc4 22. Bd3 h5 23. h4 Bf6 24. g4 hxg4 25. Qxg4 Ke7 26. Rh3 Rc7 27. h5 a5 28. Re2 Qb7 29. Qe4 Kd7 30. Nd2 Nxd2+ 31. Rxd2 Qb6 32. Qe2 Rc5 33. Be4 Ke7 34. Rb3 Qb7 35. a4 b4 36. c3 Rb8 37. cxb4 axb4 38. Rc2 Rxc2 39. Qxc2 Rc8 40. Qd3 Rc5 41. Qd2 Rc4 42. Qe2 Qc7 43. Bc2 Rh4 44. Qe1 Qa5 45. Bd1 Qxd5 0-1

[Event "2nd China Binhai Open 2020"]
[Site "Tianjin"]
[Date "2020.01.13"]
[Round "1.27"]
[White "Zhang, Xiao"]
[Black "Xu, Zicheng"]
[Result "1-0"]
[ECO "D11"]
[WhiteElo "2199"]
[BlackElo "1448"]
[PlyCount "95"]
[EventDate "2020.01.13"]
[EventType "swiss"]
[EventRounds "9"]
[EventCountry "CHN"]
[TimeControl "5400+30"]

1. d4 d5 2. Nf3 Nf6 3. g3 Bf5 4. Bg2 e6 5. c4 c6 6. Qb3 Qb6 7. c5 Qc7 8. Bf4 Qc8 9. Nc3 Nbd7 10. Nh4 Bg6 11. Nxg6 hxg6 12. e4 dxe4 13. Nxe4 Nxe4 14. Bxe4 Nf6 15. Bf3 Be7 16. O-O-O Qd7 17. Kb1 O-O 18. h4 Nd5 19. Bg5 Rfd8 20. Bxd5 exd5 21. Bxe7 Qxe7 22. h5 gxh5 23. Rxh5 g6 24. Re5 Qd7 25. Rde1 Re8 26. Qe3 Rxe5 27. Qxe5 Qh3 28. a3 Rd8 29. Ka2 a6 30. Qe7 Rd7 31. Qf6 Kf8 32. Re3 Qh6 33. g4 Qg7 34. Re8+ Kxe8 35. Qxg7 Re7 36. Qg8+ Kd7 37. Qb8 f5 38. Qxb7+ Kd8 39. Qxc6 fxg4 40. Qxd5+ Rd7 41. Qa8+ Ke7 42. d5 Kf6 43. c6 Rxd5 44. c7 Re5 45. c8=Q Rf5 46. Qd8+ Ke5 47. Qe7+ Kd4 48. Qae4# 1-0

[Event "2nd China Binhai Open 2020"]
[Site "Tianjin"]
[Date "2020.01.13"]
[Round "1.28"]
[White "Wang, Zeyu"]
[Black "Zhang, Lanlin"]
[Result "1/2-1/2"]
[ECO "A00"]
[WhiteElo "1395"]
[BlackElo "2173"]
[PlyCount "102"]
[EventDate "2020.01.13"]
[EventType "swiss"]
[EventRounds "9"]
[EventCountry "CHN"]
[TimeControl "5400+30"]

1. e4 c5 2. Nf3 d6 3. d4 cxd4 4. Qxd4 Nc6 5. Bb5 Bd7 6. Bxc6 Bxc6 7. Nc3 Nf6 8. Bg5 e6 9. O-O-O Be7 10. Qd3 a6 11. Nd4 Bd7 12. f4 Qc7 13. Rhe1 h6 14. Bxf6 gxf6 15. f5 O-O-O 16. fxe6 fxe6 17. Qf3 Kb8 18. Kb1 Qa5 19. Nb3 Qb6 20. Qe3 Qxe3 21. Rxe3 Rhg8 22. g3 Rg5 23. Nd4 Rc8 24. Nf3 Rgc5 25. e5 d5 26. exf6 Bxf6 27. Ne5 Be8 28. Nd3 R5c6 29. Ne5 R6c7 30. h4 h5 31. Rd2 Rc5 32. Nd3 d4 33. Rxe6 dxc3 34. Rde2 Rf5 35. Rxe8 cxb2 36. Rxc8+ Kxc8 37. Rf2 Rxf2 38. Nxf2 Kd7 39. Nd3 Ke6 40. Nf4+ Kf5 41. Nxh5 Be5 42. Nf4 a5 43. Nd3 Bxg3 44. h5 b5 45. Kxb2 Bh4 46. Kb3 Bf6 47. a4 bxa4+ 48. Kxa4 Kg5 49. Kxa5 Bc3+ 50. Ka4 Kxh5 51. Kb3 Bd4 1/2-1/2

[Event "2nd China Binhai Open 2020"]
[Site "Tianjin"]
[Date "2020.01.13"]
[Round "1.29"]
[White "Sun, Yidi"]
[Black "Sun, Haiyang"]
[Result "1-0"]
[ECO "A00"]
[WhiteElo "2168"]
[BlackElo "1324"]
[PlyCount "85"]
[EventDate "2020.01.13"]
[EventType "swiss"]
[EventRounds "9"]
[EventCountry "CHN"]
[TimeControl "5400+30"]

1. e4 e6 2. d4 d5 3. e5 c5 4. c3 Nc6 5. Nf3 Bd7 6. Be2 Rc8 7. O-O Nge7 8. Na3 Nf5 9. Nc2 Be7 10. a3 O-O 11. b4 c4 12. g4 Nh4 13. Nxh4 Bxh4 14. f4 Be7 15. Bf3 Qb6 16. Be3 Qc7 17. Qe2 Rce8 18. Qg2 f6 19. exf6 Rxf6 20. f5 Qd6 21. Rae1 Kh8 22. Qd2 exf5 23. Bf4 Qxf4 24. Qxf4 fxg4 25. Bxd5 Rxf4 26. Rxf4 Bd6 27. Rxe8+ Bxe8 28. Rxg4 b5 29. Re4 Bd7 30. Bxc6 Bxc6 31. Re6 Bxh2+ 32. Kxh2 Bd7 33. Rd6 Be8 34. Rd8 Kg8 35. Rxe8+ Kf7 36. Re1 h5 37. d5 g5 38. d6 g4 39. d7 h4 40. d8=Q g3+ 41. Kh3 Kg6 42. Re6+ Kf5 43. Qf6# 1-0

[Event "2nd China Binhai Open 2020"]
[Site "Tianjin"]
[Date "2020.01.13"]
[Round "1.30"]
[White "Zhu, Chenxi"]
[Black "Qiu, Mengjie"]
[Result "1/2-1/2"]
[ECO "A00"]
[WhiteElo "1286"]
[BlackElo "2167"]
[PlyCount "76"]
[EventDate "2020.01.13"]
[EventType "swiss"]
[EventRounds "9"]
[EventCountry "CHN"]
[TimeControl "5400+30"]

1. e4 c6 2. d4 d5 3. Nc3 dxe4 4. Nxe4 Bf5 5. Ng3 Bg6 6. h4 h6 7. Nf3 e6 8. h5 Bh7 9. Bd3 Bxd3 10. Qxd3 Nf6 11. Bd2 c5 12. Bc3 Nc6 13. O-O-O Be7 14. Qb5 Qb6 15. Qc4 O-O 16. dxc5 Qxc5 17. Qxc5 Bxc5 18. Bxf6 gxf6 19. Ne4 Be7 20. Rd7 f5 21. Nc3 b6 22. Rhd1 Bc5 23. R1d2 Rfd8 24. Nd1 Kg7 25. c3 a5 26. Ne5 Rxd7 27. Nxd7 Be7 28. Nxb6 Ra6 29. Nc4 Bg5 30. Nde3 f4 31. Nd1 f3 32. Nde3 fxg2 33. Rd1 Kf6 34. Kc2 Bxe3 35. Nxe3 Kg5 36. Nxg2 Kxh5 37. Kb3 Rb6+ 38. Ka3 Ne5 1/2-1/2

[Event "2nd China Binhai Open 2020"]
[Site "Tianjin"]
[Date "2020.01.13"]
[Round "1.31"]
[White "Li, Shanglin"]
[Black "Matsuoka, Junichiro"]
[Result "1-0"]
[ECO "A00"]
[WhiteElo "2020"]
[BlackElo "1216"]
[PlyCount "25"]
[EventDate "2020.01.13"]
[EventType "swiss"]
[EventRounds "9"]
[EventCountry "CHN"]
[TimeControl "5400+30"]

1. d4 Nf6 2. c4 e6 3. Nc3 d5 4. cxd5 exd5 5. Bg5 Be7 6. e3 c5 7. dxc5 Bxc5 8. Bxf6 Qxf6 9. Qxd5 Bb4 10. Bb5+ Nc6 11. Qe4+ Be7 12. Nd5 Qe6 13. Nxe7 1-0

[Event "2nd China Binhai Open 2020"]
[Site "Tianjin"]
[Date "2020.01.13"]
[Round "1.38"]
[White "Li, Konstantin N."]
[Black "Du, Yuxin"]
[Result "1/2-1/2"]
[ECO "A00"]
[WhiteElo "1454"]
[BlackElo "2073"]
[PlyCount "60"]
[EventDate "2020.01.13"]
[EventType "swiss"]
[EventRounds "9"]
[EventCountry "CHN"]
[TimeControl "5400+30"]

1. e4 c6 2. d4 d5 3. exd5 cxd5 4. Nf3 Nc6 5. Bb5 Bg4 6. h3 Bxf3 7. Qxf3 e6 8. Nd2 Qb6 9. Bxc6+ bxc6 10. Nb3 Nf6 11. O-O Be7 12. Qg3 O-O 13. Bh6 Ne8 14. Bg5 Bxg5 15. Qxg5 Nd6 16. Rab1 Ne4 17. Qe3 Qa6 18. a3 Rfb8 19. f3 Nd6 20. Nc5 Qc4 21. Qf4 Nf5 22. c3 Qa2 23. Nd3 Rb6 24. Ra1 Qc4 25. Ne5 Qe2 26. Rf2 Qe3 27. Qxe3 Nxe3 28. b4 a5 29. Rfa2 Nf5 30. Nd7 Rb7 1/2-1/2

[Event "2nd China Binhai Open 2020"]
[Site "Tianjin"]
[Date "2020.01.13"]
[Round "1.39"]
[White "Amilal Munkhdalai"]
[Black "Li, Yanzhe"]
[Result "1-0"]
[ECO "A00"]
[WhiteElo "2126"]
[BlackElo "1797"]
[PlyCount "81"]
[EventDate "2020.01.13"]
[EventType "swiss"]
[EventRounds "9"]
[EventCountry "CHN"]
[TimeControl "5400+30"]

1. e4 e5 2. Nf3 Nc6 3. Bb5 Nd4 4. Nxd4 exd4 5. d3 c6 6. Bc4 d5 7. exd5 cxd5 8. Bb5+ Bd7 9. Bxd7+ Qxd7 10. O-O Be7 11. Nd2 Nf6 12. Nf3 O-O 13. Nxd4 h6 14. Qf3 Rac8 15. Re1 Rfe8 16. Bd2 Bd6 17. Rxe8+ Rxe8 18. Nf5 Be5 19. c3 Qc7 20. h3 Bh2+ 21. Kh1 Be5 22. Re1 Bd6 23. Rxe8+ Nxe8 24. Qxd5 Qc6 25. Qxc6 bxc6 26. Nxd6 Nxd6 27. g3 Kh7 28. Kg2 Kg6 29. Kf3 Kf5 30. a4 a6 31. b4 h5 32. c4 Nb7 33. a5 g6 34. b5 axb5 35. a6 Nc5 36. a7 Nxd3 37. a8=Q bxc4 38. Bc3 g5 39. Qc8+ Kg6 40. Qg8+ Kh6 41. Qg7# 1-0

[Event "2nd China Binhai Open 2020"]
[Site "Tianjin"]
[Date "2020.01.13"]
[Round "1.47"]
[White "Hong, Xing"]
[Black "Zhang, Kevin W"]
[Result "1-0"]
[ECO "A00"]
[WhiteElo "1971"]
[BlackElo "1118"]
[PlyCount "47"]
[EventDate "2020.01.13"]
[EventType "swiss"]
[EventRounds "9"]
[EventCountry "CHN"]
[TimeControl "5400+30"]

1. e4 c5 2. Nf3 Nc6 3. d4 cxd4 4. Nxd4 Nf6 5. Nc3 e5 6. Ndb5 d6 7. Nd5 Nxd5 8. exd5 Ne7 9. c3 Nf5 10. Qa4 Bd7 11. Bd3 g6 12. Qb4 Be7 13. Bxf5 Bxf5 14. Bh6 a6 15. Na3 Rb8 16. O-O b5 17. f4 Qb6+ 18. Kh1 Bf6 19. Rae1 a5 20. Qb3 Qc5 21. c4 b4 22. Nb5 Bd7 23. Nxd6+ Ke7 24. fxe5 1-0

[Event "2nd China Binhai Open 2020"]
[Site "Tianjin"]
[Date "2020.01.13"]
[Round "1.49"]
[White "Lin Zhaochen"]
[Black "Zhang, Yichi"]
[Result "1/2-1/2"]
[ECO "A00"]
[WhiteElo "1934"]
[BlackElo "1638"]
[PlyCount "84"]
[EventDate "2020.01.13"]
[EventType "swiss"]
[EventRounds "9"]
[EventCountry "CHN"]
[TimeControl "5400+30"]

1. e4 e6 2. d4 d5 3. Nd2 c5 4. Ngf3 Nc6 5. exd5 exd5 6. Bb5 Bd6 7. dxc5 Bxc5 8. O-O Nge7 9. Nb3 Bb6 10. Re1 O-O 11. Be3 Bc7 12. Nbd4 Nxd4 13. Nxd4 Qd6 14. g3 Qd8 15. Bf1 Nf5 16. Bg2 Nxe3 17. Rxe3 Bb6 18. Rd3 Be6 19. Qd2 Qf6 20. c3 Rac8 21. Re1 Rfd8 22. Qe2 Rf8 23. Nxe6 fxe6 24. Rf3 Qe7 25. Qxe6+ Qxe6 26. Rxe6 Rxf3 27. Bxf3 Rd8 28. Re2 Rd7 29. Rd2 d4 30. c4 Bc5 31. Bd5+ Kf8 32. Rd1 a5 33. a3 b6 34. Rb1 Re7 35. b4 axb4 36. axb4 Bd6 37. Kf1 Re5 38. Rb2 g5 39. f3 h6 40. Kf2 Ke7 41. Rb3 Kf6 42. h3 Re7 1/2-1/2

[Event "2nd China Binhai Open 2020"]
[Site "Tianjin"]
[Date "2020.01.13"]
[Round "2.2"]
[White "Zhou, Jianchao"]
[Black "Yan, Tianqi"]
[Result "1-0"]
[WhiteElo "2623"]
[BlackElo "2240"]
[Annotator "RC"]
[PlyCount "160"]
[EventDate "2020.01.13"]
[EventType "swiss"]
[EventRounds "9"]
[EventCountry "CHN"]
[TimeControl "5400+30"]
[WhiteClock "0:02:28"]
[BlackClock "0:02:47"]

1. d4 {[%emt 0:04:27]} Nf6 {[%emt 0:00:00]} 2. c4 {[%emt 0:00:05]} e6 {[%emt 0:00:00]} 3. Nf3 {[%emt 0:00:03]} d5 {[%emt 0:00:00]} 4. Nc3 {[%emt 0:00:05]} Bb4 {[%emt 0:00:07]} 5. Qa4+ {[%emt 0:00:08]} Nc6 {[%emt 0:00:07]} 6. e3 {[%emt 0:00:05]} O-O {[%emt 0:01:12]} 7. Bd2 {[%emt 0:00:18]} Qe7 {[%emt 0:05:45]} 8. a3 {[%emt 0:01:59]} Bxc3 {[%emt 0:00:40]} 9. Bxc3 {[%emt 0:00:10]} Ne4 {[%emt 0:01:34]} 10. Qc2 {[%emt 0:00:34]} Re8 {[%emt 0:05:51]} 11. Rc1 {[%emt 0:03:53]} a5 {[%emt 0:08:25]} 12. Bd3 {[%emt 0:00:37]} Nxc3 {[%emt 0:00:58]} 13. Qxc3 {[%emt 0:00:08]} dxc4 {[%emt 0:02:52]} 14. Qxc4 {[%emt 0:01:01]} e5 {[%emt 0:02:52]} 15. d5 {[%emt 0:10:50]} Na7 {[%emt 0:02:11]} 16. Be2 {[%emt 0:04:50]} c6 {[%emt 0:06:29]} 17. O-O {[%emt 0:00:35]} e4 {[%emt 0:06:36]} 18. Nd4 {[%emt 0:08:59]} Qg5 {[%emt 0:01:54]} 19. Rfd1 {[%emt 0:02:13]} cxd5 {[%emt 0:00:47]} 20. Qc7 {[%emt 0:02:17]} Nc6 {[%emt 0:09:50]} 21. Bb5 {[%emt 0:16:16]} Bg4 {[%emt 0:09:48]} 22. Bxc6 {[%emt 0:11:30]} bxc6 {[%emt 0:00:40]} 23. Qg3 {[%emt 0:02:33]} h6 {[%emt 0:02:26]} 24. h4 {[%emt 0:16:05]} Qh5 {[%emt 0:02:08]} 25. Rd2 {[%emt 0:00:13]} Bd7 {[%emt 0:02:51]} 26. Nxc6 {[%emt 0:04:56]} Rac8 {[%emt 0:01:23]} 27. Qd6 {[%emt 0:00:25]} Bxc6 {[%emt 0:02:49]} 28. Rxc6 {[%emt 0:00:04]} Qxh4 {[%emt 0:02:13]} 29. Qxd5 {[%emt 0:00:55]} Rxc6 {[%emt 0:02:15]} 30. Qxc6 {[%emt 0:00:04]} Rd8 {[%emt 0:06:57]} 31. g3 {[%emt 0:00:37]} Qe7 {[%emt 0:00:44]} 32. Rxd8+ {[%emt 0:00:18]} Qxd8 {[%emt 0:00:02]} 33. Qxe4 {[%emt 0:00:07]} Qd1+ {[%emt 0:00:43]} 34. Kg2 {[%emt 0:01:25]} Qb3 {[%emt 0:00:25]} 35. Qa8+ {[%emt 0:00:48]} Kh7 {[%emt 0:00:03]} 36. Qxa5 {[%emt 0:00:10]} Qb7+ {[%emt 0:00:22]} 37. Kg1 {[%emt 0:00:33]} Qxb2 {[%emt 0:00:14]} 38. Qf5+ {[%emt 0:00:23]} Kg8 {[%emt 0:00:03]} 39. Qc8+ {[%emt 0:00:14]} Kh7 {[%emt 0:00:02]} 40. Qa8 {[%emt 0:00:15]} h5 {[%emt 0:01:48]} 41. a4 {[%emt 0:01:25]} Qb1+ {[%emt 0:00:08]} 42. Kg2 {[%emt 0:00:08]} h4 {[%emt 0:00:57]} 43. g4 {[%emt 0:06:19]} f5 {[%emt 0:01:47]} 44. Qd5 {[%emt 0:01:03]} fxg4 {[%emt 0:01:31]} 45. Qh5+ {[%emt 0:00:08]} Kg8 {[%emt 0:00:03]} 46. Qe8+ {[%emt 0:00:37]} Kh7 {[%emt 0:00:04]} 47. Qh5+ {[%emt 0:00:08]} Kg8 {[%emt 0:00:01]} 48. Qxg4 {[%emt 0:00:13]} h3+ {[%emt 0:01:33]} 49. Kh2 {[%emt 0:01:00]} Qf1 {[%emt 0:01:18]} 50. Qf3 {[%emt 0:00:57]} Qc4 {[%emt 0:00:56]} 51. Qa8+ {[%emt 0:00:55]} Kh7 {[%emt 0:00:37]} 52. Kxh3 {[%emt 0:00:38]} Qe6+ {[%emt 0:00:21]} 53. Kh2 {[%emt 0:00:14]} Qd6+ {[%emt 0:01:18]} 54. f4 {[%emt 0:00:15]} Qd3 {[%emt 0:02:35]} 55. Qg2 {[%emt 0:01:18]} Kg8 {[%emt 0:00:10]} 56. e4 {[%emt 0:00:39]} Qe3 {[%emt 0:02:02]} 57. f5 {[%emt 0:00:37]} Qh6+ {[%emt 0:00:25]} 58. Kg3 {[%emt 0:00:14]} Qd6+ {[%emt 0:00:07]} 59. Kh4 {[%emt 0:00:47]} Qd8+ {[%emt 0:03:17]} 60. Kg4 {[%emt 0:00:13]} Qd1+ {[%emt 0:00:18]} 61. Kg5 {[%emt 0:00:31]} Qxa4 {[%emt 0:01:08]} 62. e5 {[%emt 0:00:17]} Qd4 {[%emt 0:00:41]} 63. Kg6 {[%emt 0:00:45]} Qb6+ {[%emt 0:00:51]} 64. e6 {[%emt 0:00:29]} Qd8 {[%emt 0:00:28]} 65. Qe4 {[%emt 0:00:54]} Qe8+ {[%emt 0:01:53]} 66. Kg5 {[%emt 0:00:01]} Qe7+ {[%emt 0:00:05]} 67. Kg4 {[%emt 0:00:09]} Kh8 {[%emt 0:00:14]} 68. Qh1+ {[%emt 0:01:21]} Kg8 {[%emt 0:00:02]} 69. Qh4 {[%emt 0:00:32]} Qb4+ {[%emt 0:00:13]} 70. Kh5 {[%emt 0:00:12]} Qb5 {[%emt 0:01:33]} 71. Qe4 {[%emt 0:00:26]} Qe8+ {[%emt 0:00:16]} 72. Kg4 {[%emt 0:00:07]} Qe7 {[%emt 0:00:09]} 73. Qd3 {[%emt 0:00:45]} g6 {[%emt 0:01:11]} 74. Qg3 {[%emt 0:00:58]} gxf5+ {[%emt 0:01:14]} 75. Kxf5+ {[%emt 0:00:03]} Kf8 {[%emt 0:00:06]} 76. Qb8+ {[%emt 0:00:11]} Qe8 {[%emt 0:01:08]} 77. Qd6+ {[%emt 0:00:13]} Qe7 {[%emt 0:00:17]} 78. Ke5 {[%emt 0:00:14]} Ke8 {[%emt 0:00:21]} 79. Qb8+ {[%emt 0:00:04]} Qd8 {[%emt 0:00:05]} 80. Qxd8+ {[%emt 0:00:05]} Kxd8 {[%emt 0:00:03]} 1-0

[Event "2nd China Binhai Open 2020"]
[Site "Tianjin"]
[Date "2020.01.13"]
[Round "2.10"]
[White "Xiang, Zeyu"]
[Black "Li, Guohao"]
[Result "1-0"]
[ECO "D13"]
[WhiteElo "2446"]
[BlackElo "2131"]
[PlyCount "59"]
[EventDate "2020.01.13"]
[EventType "swiss"]
[EventRounds "9"]
[EventCountry "CHN"]
[TimeControl "5400+30"]

1. d4 d5 2. c4 c6 3. cxd5 cxd5 4. Bf4 Nc6 5. e3 Nf6 6. Nc3 a6 7. Be2 e6 8. Nf3 Be7 9. h3 O-O 10. O-O Bd7 11. Rc1 Rc8 12. Bd3 Na5 13. Qe2 Nc4 14. Ne5 b5 15. Rc2 Bc6 16. Rfc1 Bb7 17. a4 Qb6 18. axb5 axb5 19. g4 Bd6 20. b3 Na3 21. Ra2 b4 22. g5 Ne4 23. Bxe4 dxe4 24. Nd7 Qc6 25. Bxd6 Qxd6 26. Nxf8 bxc3 27. Nd7 Qb4 28. Nc5 Bd5 29. Rca1 Ra8 30. Na6 1-0

[Event "2nd China Binhai Open 2020"]
[Site "Tianjin"]
[Date "2020.01.13"]
[Round "2.16"]
[White "Xu, Minghui"]
[Black "Amilal Munkhdalai"]
[Result "1-0"]
[ECO "A00"]
[WhiteElo "2406"]
[BlackElo "2126"]
[PlyCount "125"]
[EventDate "2020.01.13"]
[EventType "swiss"]
[EventRounds "9"]
[EventCountry "CHN"]
[TimeControl "5400+30"]

1. Nf3 Nf6 2. g3 e6 3. Bg2 d5 4. d4 b5 5. a4 b4 6. c4 bxc3 7. Nxc3 Bb4 8. O-O O-O 9. Bf4 Bxc3 10. bxc3 Ba6 11. Ne5 Nfd7 12. Nd3 Nc6 13. e4 Bc4 14. Rb1 Rb8 15. Qc2 Rb6 16. Rfe1 Qc8 17. Rxb6 cxb6 18. Nb2 Ba6 19. exd5 Nb4 20. Qb3 Nxd5 21. Bd6 Re8 22. c4 Ne7 23. Bxe7 Rxe7 24. a5 Re8 25. axb6 axb6 26. Rc1 e5 27. dxe5 Rxe5 28. Qb4 Qc7 29. Nd3 Re8 30. Nf4 Nf6 31. Nd5 Nxd5 32. Bxd5 Rc8 33. Ra1 Bb7 34. Ra7 Rb8 35. c5 Qc8 36. Rxb7 Rxb7 37. Bxb7 Qxb7 38. cxb6 h6 39. h3 g5 40. Qd6 Kg7 41. Qc7 Qe4 42. b7 Qe1+ 43. Kg2 Qe4+ 44. Kh2 Qd4 45. Kg1 Qd1+ 46. Kg2 Qd5+ 47. Kh2 Qd4 48. Qc2 Qb6 49. Qc3+ Kg8 50. Qc8+ Kg7 51. Qc3+ Kg8 52. Qf3 Kg7 53. Kg2 Qb5 54. Qe4 Kf8 55. h4 gxh4 56. gxh4 f5 57. Qf3 Kf7 58. Kh3 Qf1+ 59. Kg3 Qb5 60. Kh2 Ke7 61. Qg3 f4 62. Qa3+ Kf7 63. Qa7 1-0

[Event "2nd China Binhai Open 2020"]
[Site "Tianjin"]
[Date "2020.01.13"]
[Round "2.19"]
[White "Lin, Peisen"]
[Black "Nie, Xinyang"]
[Result "0-1"]
[ECO "A00"]
[WhiteElo "1962"]
[BlackElo "2348"]
[PlyCount "68"]
[EventDate "2020.01.13"]
[EventType "swiss"]
[EventRounds "9"]
[EventCountry "CHN"]
[TimeControl "5400+30"]

1. e4 b6 2. d4 Bb7 3. Nc3 e6 4. Nf3 Bb4 5. Bd3 Nf6 6. Qe2 d5 7. exd5 Nxd5 8. Bd2 Nxc3 9. bxc3 Bd6 10. O-O Nd7 11. Ng5 Nf6 12. Rfe1 O-O 13. Ne4 Nxe4 14. Bxe4 Bxe4 15. Qxe4 Qd7 16. c4 Rfe8 17. Rad1 Qa4 18. Qd3 Rad8 19. Qb3 Qa6 20. Be3 h6 21. a4 Qc8 22. a5 e5 23. d5 Qd7 24. Rb1 Qe7 25. Qb5 f5 26. f3 e4 27. Bf2 Qg5 28. fxe4 fxe4 29. Qb3 Rf8 30. Bd4 Rf3 31. Re3 Rdf8 32. Rbe1 R8f5 33. Qb5 Bxh2+ 34. Kh1 Qh4 0-1